[Event "SWE-ch Blitz 2019"]
[Site "Eskilstuna"]
[Date "2019.07.11"]
[Round "2.15"]
[White "Heidenfors, Ronald"]
[Black "Pantzar, Milton"]
[Result "0-1"]
[ECO "C97"]
[WhiteElo "2013"]
[BlackElo "2357"]
[Annotator "NA"]
[PlyCount "98"]
[EventDate "2019.07.06"]
[EventType "swiss"]
[EventCountry "SWE"]
[SourceTitle "playchess.com"]
[Source "ChessBase"]
[SourceQuality "1"]
[TimeControl "180+2"]

1. e4 {[%emt 0:00:00]} e5 {[%emt 0:00:00]} 2. Nf3 {[%emt 0:00:00]} Nc6 {[%emt 0:00:00]} 3. Bb5 {[%emt 0:00:01]} a6 {[%emt 0:00:02]} 4. Ba4 {[%emt 0:00:02]} Nf6 {[%emt 0:00:01]} 5. O-O {[%emt 0:00:02]} Be7 {[%emt 0:00:01]} 6. Re1 {[%emt 0:00:03]} b5 {[%emt 0:00:02]} 7. Bb3 {[%emt 0:00:01]} d6 {[%emt 0:00:01]} 8. h3 {[%emt 0:00:02]} O-O {[%emt 0:00:04]} 9. c3 {[%emt 0:00:02]} Na5 {[%emt 0:00:02]} 10. Bc2 {[%emt 0:00:02]} c5 {[%emt 0:00:01]} 11. d4 {[%emt 0:00:01]} Qc7 {[%emt 0:00:01]} 12. Nbd2 {[%emt 0:00:12]} Be6 {[%emt 0:00:05]} 13. Nf1 {[%emt 0:00:07]} cxd4 {[%emt 0:00:09]} 14. cxd4 {[%emt 0:00:02]} Rfc8 {[%emt 0:00:01]} 15. Bd3 {[%emt 0:00:04]} Bc4 {[%emt 0:00:10]} 16. Ne3 {[%emt 0:00:13]} Bxd3 17. Qxd3 {[%emt 0:00:02]} Nc4 {[%emt 0:00:29]} 18. Nf5 {[%emt 0:00:11]} exd4 {[%emt 0:00:09]} 19. Qxd4 {[%emt 0:00:12]} Bf8 {[%emt 0:00:15]} 20. Bg5 {[%emt 0:00:20]} Nd7 {[%emt 0:00:17]} 21. Rac1 {[%emt 0:00:13]} Qc5 {[%emt 0:00:05]} 22. b3 {[%emt 0:00:18]} Qxd4 {[%emt 0:00:02]} 23. N5xd4 {[%emt 0:00:07]} Nce5 {[%emt 0:00:03]} 24. Nxe5 {[%emt 0:00:21]} dxe5 {[%emt 0:00:13]} 25. Nf5 {[%emt 0:00:08]} Nc5 {[%emt 0:00:08]} 26. Ne7+ {[%emt 0:00:02]} Bxe7 27. Bxe7 {[%emt 0:00:02]} Nd3 {[%emt 0:00:06]} 28. Rxc8+ {[%emt 0:00:02]} Rxc8 {[%emt 0:00:00]} 29. Rd1 {[%emt 0:00:01]} Rc1 {[%emt 0:00:03]} 30. Rxc1 {[%emt 0:00:02]} Nxc1 {[%emt 0:00:01]} 31. Bg5 {[%emt 0:00:06]} Ne2+ {[%emt 0:00:07]} 32. Kf1 {[%emt 0:00:03]} Nc3 {[%emt 0:00:02]} 33. a3 {[%emt 0:00:05]} Nxe4 {[%emt 0:00:02]} 34. Be7 {[%emt 0:00:01]} Nf6 {[%emt 0:00:05]} 35. Ke2 {[%emt 0:00:02]} Nd5 {[%emt 0:00:03]} 36. Bd6 {[%emt 0:00:02]} f6 {[%emt 0:00:02]} 37. Kd3 {[%emt 0:00:02]} Kf7 {[%emt 0:00:02]} 38. a4 {[%emt 0:00:01]} Ke6 {[%emt 0:00:01]} 39. axb5 {[%emt 0:00:03]} Kxd6 {[%emt 0:00:04]} 40. bxa6 {[%emt 0:00:02]} Kc6 {[%emt 0:00:09]} 41. Kc4 {[%emt 0:00:04]} Nc7 {[%emt 0:00:04]} 42. a7 {[%emt 0:00:02]} Kb6 {[%emt 0:00:01]} 43. Kb4 Kxa7 {[%emt 0:00:02]} 44. Kc5 {[%emt 0:00:04]} Ne6+ {[%emt 0:00:04]} 45. Kd6 {[%emt 0:00:02]} Nf4 {[%emt 0:00:02]} 46. g3 {[%emt 0:00:02]} Nxh3 {[%emt 0:00:01]} 47. Ke6 {[%emt 0:00:01]} Nxf2 {[%emt 0:00:02]} 48. Kf7 {[%emt 0:00:01]} e4 {[%emt 0:00:01]} 49. Kxg7 {[%emt 0:00:02]} e3 {[%emt 0:00:01]} 0-1

[Event "SWE-ch Blitz 2019"]
[Site "Eskilstuna"]
[Date "2019.07.11"]
[Round "2.16"]
[White "Olund, Joar"]
[Black "Eklund, Mathias"]
[Result "1-0"]
[ECO "A45"]
[WhiteElo "2313"]
[BlackElo "1950"]
[Annotator "NA"]
[PlyCount "97"]
[EventDate "2019.07.06"]
[EventType "swiss"]
[EventCountry "SWE"]
[SourceTitle "playchess.com"]
[Source "ChessBase"]
[SourceQuality "1"]
[TimeControl "180+2"]

1. d4 {[%emt 0:00:00]} Nf6 {[%emt 0:00:00]} 2. Bg5 {[%emt 0:00:00]} Ne4 {[%emt 0:00:03]} 3. Bf4 {[%emt 0:00:01]} d5 {[%emt 0:00:06]} 4. Nd2 {[%emt 0:00:01]} c5 {[%emt 0:00:16]} 5. Nxe4 {[%emt 0:00:50]} dxe4 {[%emt 0:00:01]} 6. dxc5 {[%emt 0:00:08]} Qa5+ {[%emt 0:00:06]} 7. c3 {[%emt 0:00:12]} Qxc5 {[%emt 0:00:08]} 8. Qa4+ {[%emt 0:00:07]} Nc6 {[%emt 0:00:14]} 9. Qxe4 {[%emt 0:00:02]} Bf5 {[%emt 0:00:07]} 10. Qe3 {[%emt 0:00:02]} Qd5 {[%emt 0:00:11]} 11. Qd2 {[%emt 0:00:19]} O-O-O {[%emt 0:00:30]} 12. Qxd5 {[%emt 0:00:08]} Rxd5 {[%emt 0:00:01]} 13. f3 {[%emt 0:00:07]} Rd8 {[%emt 0:00:32]} 14. e4 {[%emt 0:00:02]} Bg6 {[%emt 0:00:08]} 15. Bb5 {[%emt 0:00:12]} f6 {[%emt 0:00:09]} 16. Be3 {[%emt 0:00:16]} Kb8 {[%emt 0:00:05]} 17. Ne2 {[%emt 0:00:19]} e5 {[%emt 0:00:01]} 18. Bxc6 {[%emt 0:00:11]} bxc6 {[%emt 0:00:01]} 19. Rd1 {[%emt 0:00:04]} Be7 {[%emt 0:00:03]} 20. Nc1 {[%emt 0:00:04]} Rxd1+ {[%emt 0:00:07]} 21. Kxd1 {[%emt 0:00:00]} Rd8+ {[%emt 0:00:01]} 22. Kc2 {[%emt 0:00:01]} f5 {[%emt 0:00:01]} 23. Rd1 {[%emt 0:00:19]} fxe4 {[%emt 0:00:05]} 24. Rxd8+ Bxd8 {[%emt 0:00:01]} 25. Kd2 {[%emt 0:00:11]} exf3 {[%emt 0:00:04]} 26. gxf3 {[%emt 0:00:01]} a6 {[%emt 0:00:10]} 27. Nd3 {[%emt 0:00:01]} Bc7 {[%emt 0:00:01]} 28. h4 {[%emt 0:00:06]} e4 {[%emt 0:00:11]} 29. fxe4 {[%emt 0:00:02]} Bxe4 {[%emt 0:00:01]} 30. Nc5 {[%emt 0:00:01]} Bb1 {[%emt 0:00:11]} 31. Nxa6+ {[%emt 0:00:01]} Kb7 {[%emt 0:00:01]} 32. Nc5+ {[%emt 0:00:01]} Kc8 {[%emt 0:00:03]} 33. a4 {[%emt 0:00:00]} Bb6 {[%emt 0:00:04]} 34. b4 {[%emt 0:00:01]} Bxc5 {[%emt 0:00:03]} 35. Bxc5 {[%emt 0:00:01]} Ba2 {[%emt 0:00:06]} 36. Ke3 {[%emt 0:00:01]} Bb3 {[%emt 0:00:03]} 37. a5 {[%emt 0:00:00]} Bc4 {[%emt 0:00:01]} 38. Kd4 {[%emt 0:00:01]} Ba6 {[%emt 0:00:04]} 39. Bd6 {[%emt 0:00:02]} Kd7 {[%emt 0:00:01]} 40. Kc5 {[%emt 0:00:02]} Bb5 {[%emt 0:00:03]} 41. Bf4 {[%emt 0:00:01]} Ba6 {[%emt 0:00:05]} 42. c4 {[%emt 0:00:01]} Bc8 {[%emt 0:00:04]} 43. b5 {[%emt 0:00:01]} cxb5 {[%emt 0:00:03]} 44. cxb5 {[%emt 0:00:01]} Bb7 {[%emt 0:00:04]} 45. Kb6 {[%emt 0:00:08]} Kc8 {[%emt 0:00:01]} 46. a6 {[%emt 0:00:04]} Bf3 {[%emt 0:00:01]} 47. Ka7 {[%emt 0:00:03]} Be2 {[%emt 0:00:04]} 48. b6 {[%emt 0:00:01]} h6 {[%emt 0:00:06]} 49. b7+ {[%emt 0:00:01]} 1-0

[Event "SWE-ch Blitz 2019"]
[Site "Eskilstuna"]
[Date "2019.07.11"]
[Round "2.17"]
[White "Rajcevski, Dejan"]
[Black "Lind, Jan-Olov"]
[Result "1-0"]
[ECO "A49"]
[WhiteElo "1946"]
[BlackElo "2155"]
[Annotator "NA"]
[PlyCount "139"]
[EventDate "2019.07.06"]
[EventType "swiss"]
[EventCountry "SWE"]
[SourceTitle "playchess.com"]
[Source "ChessBase"]
[SourceQuality "1"]
[TimeControl "180+2"]

1. Nf3 {[%emt 0:00:00]} Nf6 {[%emt 0:00:00]} 2. g3 {[%emt 0:00:07]} g6 {[%emt 0:00:21]} 3. Bg2 {[%emt 0:00:00]} Bg7 {[%emt 0:00:00]} 4. O-O {[%emt 0:00:00]} O-O {[%emt 0:00:00]} 5. d4 {[%emt 0:00:01]} d6 {[%emt 0:00:00]} 6. b3 {[%emt 0:00:02]} Nbd7 {[%emt 0:00:00]} 7. Bb2 {[%emt 0:00:02]} a6 {[%emt 0:00:00]} 8. c4 {[%emt 0:00:02]} Rb8 {[%emt 0:00:00]} 9. Qc2 {[%emt 0:00:02]} b5 {[%emt 0:00:02]} 10. Nbd2 {[%emt 0:00:06]} bxc4 11. bxc4 {[%emt 0:00:02]} c5 {[%emt 0:00:09]} 12. e3 {[%emt 0:00:10]} Bb7 {[%emt 0:00:08]} 13. Rab1 {[%emt 0:00:02]} Bc6 {[%emt 0:00:03]} 14. d5 {[%emt 0:00:08]} Ba8 {[%emt 0:00:02]} 15. Bc3 {[%emt 0:00:15]} Qc7 {[%emt 0:00:05]} 16. Rb3 {[%emt 0:00:10]} Rxb3 {[%emt 0:00:17]} 17. axb3 {[%emt 0:00:02]} Bb7 {[%emt 0:00:03]} 18. Ra1 {[%emt 0:00:02]} Rb8 {[%emt 0:00:04]} 19. Bf1 {[%emt 0:00:05]} Bc8 {[%emt 0:00:01]} 20. Bd3 {[%emt 0:00:12]} Ng4 {[%emt 0:00:07]} 21. Bxg7 {[%emt 0:00:12]} Kxg7 {[%emt 0:00:02]} 22. h3 {[%emt 0:00:02]} Nge5 {[%emt 0:00:02]} 23. Nxe5 {[%emt 0:00:03]} Nxe5 {[%emt 0:00:02]} 24. Bf1 {[%emt 0:00:11]} Kg8 {[%emt 0:00:01]} 25. f4 {[%emt 0:00:11]} Nd7 {[%emt 0:00:03]} 26. Qc3 {[%emt 0:00:11]} Nf6 {[%emt 0:00:03]} 27. Kh2 {[%emt 0:00:06]} Qb6 {[%emt 0:00:13]} 28. Qa5 {[%emt 0:00:13]} Qxa5 {[%emt 0:00:11]} 29. Rxa5 {[%emt 0:00:00]} Rb4 {[%emt 0:00:01]} 30. Bd3 {[%emt 0:00:07]} Kf8 {[%emt 0:00:01]} 31. e4 {[%emt 0:00:01]} Ke8 {[%emt 0:00:11]} 32. Kg2 {[%emt 0:00:07]} Kd8 {[%emt 0:00:01]} 33. g4 {[%emt 0:00:04]} Kc7 {[%emt 0:00:02]} 34. Kf3 {[%emt 0:00:04]} Kb6 {[%emt 0:00:01]} 35. Ra1 {[%emt 0:00:02]} Kc7 {[%emt 0:00:25]} 36. Bc2 {[%emt 0:00:02]} Nd7 {[%emt 0:00:10]} 37. Rg1 {[%emt 0:00:11]} h6 {[%emt 0:00:04]} 38. h4 {[%emt 0:00:05]} Rb8 {[%emt 0:00:10]} 39. g5 {[%emt 0:00:08]} h5 {[%emt 0:00:10]} 40. Ra1 {[%emt 0:00:06]} Kb6 {[%emt 0:00:07]} 41. Nb1 {[%emt 0:00:10]} Nf8 {[%emt 0:00:05]} 42. Nc3 {[%emt 0:00:05]} Bd7 {[%emt 0:00:01]} 43. e5 {[%emt 0:00:10]} dxe5 44. fxe5 {[%emt 0:00:01]} Bg4+ {[%emt 0:00:07]} 45. Kf4 {[%emt 0:00:03]} Bd7 {[%emt 0:00:05]} 46. Ne4 {[%emt 0:00:05]} Be8 {[%emt 0:00:03]} 47. Rd1 {[%emt 0:00:05]} a5 {[%emt 0:00:09]} 48. d6 {[%emt 0:00:01]} exd6 {[%emt 0:00:02]} 49. Rxd6+ {[%emt 0:00:01]} Kc7 {[%emt 0:00:02]} 50. Nxc5 {[%emt 0:00:03]} a4 {[%emt 0:00:09]} 51. Na6+ {[%emt 0:00:01]} Kb7 {[%emt 0:00:06]} 52. Nxb8 {[%emt 0:00:01]} axb3 {[%emt 0:00:08]} 53. Bxb3 {[%emt 0:00:09]} Ne6+ {[%emt 0:00:12]} 54. Rxe6 {[%emt 0:00:09]} fxe6 {[%emt 0:00:02]} 55. c5 {[%emt 0:00:01]} Kxb8 {[%emt 0:00:01]} 56. Bxe6 {[%emt 0:00:01]} Kc7 {[%emt 0:00:03]} 57. Bd5 {[%emt 0:00:06]} Kd7 {[%emt 0:00:04]} 58. e6+ {[%emt 0:00:02]} Ke7 {[%emt 0:00:03]} 59. Ke5 {[%emt 0:00:03]} Bb5 {[%emt 0:00:01]} 60. c6 {[%emt 0:00:01]} Ba6 {[%emt 0:00:02]} 61. c7 {[%emt 0:00:02]} Bc8 {[%emt 0:00:00]} 62. Bc6 {[%emt 0:00:03]} Ba6 {[%emt 0:00:12]} 63. Bd7 {[%emt 0:00:03]} Bb7 {[%emt 0:00:05]} 64. c8=Q {[%emt 0:00:04]} Bxc8 {[%emt 0:00:01]} 65. Bxc8 {[%emt 0:00:00]} Kd8 {[%emt 0:00:08]} 66. Ba6 {[%emt 0:00:03]} Ke7 {[%emt 0:00:00]} 67. Bb5 {[%emt 0:00:01]} Kf8 {[%emt 0:00:04]} 68. Kf6 {[%emt 0:00:00]} Kg8 {[%emt 0:00:02]} 69. Kxg6 {[%emt 0:00:02]} Kh8 {[%emt 0:00:03]} 70. e7 {[%emt 0:00:01]} 1-0

[Event "SWE-ch Blitz 2019"]
[Site "Eskilstuna"]
[Date "2019.07.11"]
[Round "2.18"]
[White "Nilsson, Joakim"]
[Black "Gemzell, Ted"]
[Result "1-0"]
[ECO "A30"]
[WhiteElo "2319"]
[BlackElo "2047"]
[Annotator "NA"]
[PlyCount "59"]
[EventDate "2019.07.06"]
[EventType "swiss"]
[EventCountry "SWE"]
[SourceTitle "playchess.com"]
[Source "ChessBase"]
[SourceQuality "1"]
[TimeControl "180+2"]

1. Nf3 {[%emt 0:00:00]} Nf6 {[%emt 0:00:00]} 2. b3 {[%emt 0:00:01]} g6 {[%emt 0:00:01]} 3. Bb2 {[%emt 0:00:00]} Bg7 {[%emt 0:00:01]} 4. e3 {[%emt 0:00:01]} O-O {[%emt 0:00:01]} 5. Be2 {[%emt 0:00:02]} b6 {[%emt 0:00:06]} 6. O-O {[%emt 0:00:02]} Bb7 {[%emt 0:00:00]} 7. c4 {[%emt 0:00:01]} c5 {[%emt 0:00:16]} 8. Nc3 {[%emt 0:00:08]} Nc6 {[%emt 0:00:05]} 9. d4 {[%emt 0:00:21]} cxd4 {[%emt 0:00:05]} 10. exd4 {[%emt 0:00:14]} d5 {[%emt 0:00:14]} 11. Rc1 {[%emt 0:00:14]} Rc8 {[%emt 0:00:02]} 12. Re1 {[%emt 0:00:05]} Re8 {[%emt 0:00:25]} 13. h3 {[%emt 0:00:14]} e6 {[%emt 0:00:17]} 14. Bf1 {[%emt 0:00:20]} a6 {[%emt 0:00:31]} 15. Ba1 {[%emt 0:00:01]} Qd7 {[%emt 0:00:11]} 16. Ne5 {[%emt 0:00:04]} Nxe5 {[%emt 0:00:06]} 17. dxe5 {[%emt 0:00:02]} Nh5 {[%emt 0:00:20]} 18. Ne4 {[%emt 0:00:08]} Qe7 {[%emt 0:00:13]} 19. Nd6 {[%emt 0:00:05]} Red8 {[%emt 0:00:11]} 20. Nxc8 {[%emt 0:00:03]} Rxc8 {[%emt 0:00:01]} 21. cxd5 {[%emt 0:00:06]} Rxc1 {[%emt 0:00:14]} 22. Qxc1 {[%emt 0:00:01]} Bxd5 {[%emt 0:00:00]} 23. Qc8+ {[%emt 0:00:11]} Bf8 {[%emt 0:00:05]} 24. Rc1 {[%emt 0:00:22]} Qb4 {[%emt 0:00:07]} 25. Qc3 {[%emt 0:00:29]} Qf4 {[%emt 0:00:05]} 26. Qe3 {[%emt 0:00:06]} Qxe3 {[%emt 0:00:07]} 27. fxe3 {[%emt 0:00:01]} Ng7 {[%emt 0:00:01]} 28. Bd4 {[%emt 0:00:01]} b5 {[%emt 0:00:01]} 29. Rc8 {[%emt 0:00:02]} Nf5 {[%emt 0:00:01]} 30. Bc5 {[%emt 0:00:01]} 1-0

[Event "SWE-ch Blitz 2019"]
[Site "Eskilstuna"]
[Date "2019.07.11"]
[Round "2.20"]
[White "Nygren, Kim"]
[Black "Halvarsson, Peter"]
[Result "1-0"]
[ECO "B27"]
[WhiteElo "2171"]
[BlackElo "1903"]
[Annotator "NA"]
[PlyCount "71"]
[EventDate "2019.07.06"]
[EventType "swiss"]
[EventCountry "SWE"]
[SourceTitle "playchess.com"]
[Source "ChessBase"]
[SourceQuality "1"]
[TimeControl "180+2"]

1. e4 {[%emt 0:00:01]} c5 {[%emt 0:00:00]} 2. Nf3 {[%emt 0:00:01]} g6 {[%emt 0:00:00]} 3. d4 {[%emt 0:00:03]} cxd4 {[%emt 0:00:00]} 4. Qxd4 {[%emt 0:00:03]} Nf6 {[%emt 0:00:00]} 5. Bb5 {[%emt 0:00:02]} a6 {[%emt 0:00:09]} 6. e5 {[%emt 0:00:06]} Bg7 {[%emt 0:00:05]} 7. Ba4 {[%emt 0:00:23]} b5 {[%emt 0:00:11]} 8. Bb3 {[%emt 0:00:08]} Nc6 {[%emt 0:00:01]} 9. Qh4 {[%emt 0:00:02]} Ng8 {[%emt 0:00:10]} 10. Bf4 {[%emt 0:00:18]} h6 {[%emt 0:00:31]} 11. Qg3 {[%emt 0:00:03]} Qa5+ {[%emt 0:00:33]} 12. Nc3 {[%emt 0:00:09]} e6 {[%emt 0:00:15]} 13. O-O {[%emt 0:00:07]} Nge7 {[%emt 0:00:01]} 14. Ne4 {[%emt 0:00:07]} Nf5 {[%emt 0:00:03]} 15. Qh3 {[%emt 0:00:05]} g5 {[%emt 0:00:25]} 16. Bd2 {[%emt 0:00:28]} Qb6 {[%emt 0:00:16]} 17. g4 {[%emt 0:00:11]} Nfd4 {[%emt 0:00:18]} 18. Nd6+ {[%emt 0:00:02]} Ke7 {[%emt 0:00:07]} 19. Be3 {[%emt 0:00:43]} Nxe5 {[%emt 0:00:08]} 20. Nxc8+ {[%emt 0:00:15]} Raxc8 {[%emt 0:00:01]} 21. Nxd4 {[%emt 0:00:01]} Qb7 {[%emt 0:00:08]} 22. f4 {[%emt 0:00:07]} Nc4 {[%emt 0:00:07]} 23. Bxc4 {[%emt 0:00:03]} bxc4 {[%emt 0:00:05]} 24. c3 {[%emt 0:00:07]} h5 {[%emt 0:00:09]} 25. gxh5 {[%emt 0:00:03]} f5 {[%emt 0:00:03]} 26. Rae1 {[%emt 0:00:04]} Bxd4 {[%emt 0:00:01]} 27. Bxd4 {[%emt 0:00:02]} gxf4 {[%emt 0:00:01]} 28. Qh4+ {[%emt 0:00:03]} Kd6 {[%emt 0:00:03]} 29. Qxf4+ {[%emt 0:00:01]} Ke7 {[%emt 0:00:01]} 30. Qg5+ {[%emt 0:00:02]} Kd6 {[%emt 0:00:01]} 31. Bxh8 {[%emt 0:00:03]} Rxh8 {[%emt 0:00:01]} 32. Rd1+ {[%emt 0:00:03]} Kc5 {[%emt 0:00:01]} 33. Qe3+ {[%emt 0:00:02]} Kb5 {[%emt 0:00:01]} 34. a4+ {[%emt 0:00:03]} Ka5 {[%emt 0:00:01]} 35. Qc5+ {[%emt 0:00:02]} Kxa4 {[%emt 0:00:01]} 36. Ra1+ {[%emt 0:00:03]} 1-0

[Event "SWE-ch Blitz 2019"]
[Site "Eskilstuna"]
[Date "2019.07.11"]
[Round "2.21"]
[White "Cramling Bellon, Anna"]
[Black "Zadruzny, Nicolaj"]
[Result "0-1"]
[ECO "E36"]
[WhiteElo "2030"]
[BlackElo "2280"]
[Annotator "NA"]
[PlyCount "116"]
[EventDate "2019.07.06"]
[EventType "swiss"]
[EventCountry "SWE"]
[SourceTitle "playchess.com"]
[Source "ChessBase"]
[SourceQuality "1"]
[TimeControl "180+2"]

1. d4 {[%emt 0:00:00]} Nf6 {[%emt 0:00:02]} 2. c4 {[%emt 0:00:00]} e6 {[%emt 0:00:01]} 3. Nc3 {[%emt 0:00:00]} Bb4 {[%emt 0:00:01]} 4. Qc2 {[%emt 0:00:01]} O-O {[%emt 0:00:03]} 5. Nf3 {[%emt 0:00:01]} d5 {[%emt 0:00:01]} 6. a3 {[%emt 0:00:02]} Bxc3+ {[%emt 0:00:03]} 7. Qxc3 {[%emt 0:00:01]} dxc4 {[%emt 0:00:07]} 8. Qxc4 {[%emt 0:00:02]} b6 {[%emt 0:00:01]} 9. Bg5 {[%emt 0:00:07]} Ba6 {[%emt 0:00:06]} 10. Qa4 {[%emt 0:00:06]} Qd7 {[%emt 0:00:26]} 11. Qc2 {[%emt 0:00:55]} Nc6 {[%emt 0:00:25]} 12. Bxf6 {[%emt 0:00:43]} gxf6 {[%emt 0:00:01]} 13. e3 {[%emt 0:00:13]} Bxf1 {[%emt 0:00:04]} 14. Kxf1 {[%emt 0:00:10]} Ne7 {[%emt 0:00:22]} 15. Rc1 {[%emt 0:00:18]} Rac8 {[%emt 0:00:07]} 16. Rd1 {[%emt 0:00:44]} Rfd8 {[%emt 0:00:29]} 17. g3 {[%emt 0:00:03]} c5 {[%emt 0:00:06]} 18. d5 {[%emt 0:00:06]} Nxd5 {[%emt 0:00:10]} 19. Kg2 {[%emt 0:00:00]} Qc6 {[%emt 0:00:21]} 20. e4 {[%emt 0:00:01]} Nc7 {[%emt 0:00:07]} 21. Rhe1 {[%emt 0:00:02]} Nb5 {[%emt 0:00:04]} 22. Rxd8+ {[%emt 0:00:04]} Rxd8 {[%emt 0:00:01]} 23. Qe2 {[%emt 0:00:04]} Nd4 {[%emt 0:00:24]} 24. Nxd4 {[%emt 0:00:01]} cxd4 {[%emt 0:00:06]} 25. Qd3 {[%emt 0:00:03]} e5 {[%emt 0:00:02]} 26. f3 {[%emt 0:00:02]} Rc8 {[%emt 0:00:00]} 27. Re2 {[%emt 0:00:01]} Qc1 {[%emt 0:00:02]} 28. Rd2 {[%emt 0:00:01]} Qe1 {[%emt 0:00:02]} 29. Qe2 {[%emt 0:00:02]} Qxe2+ {[%emt 0:00:01]} 30. Rxe2 {[%emt 0:00:00]} Kf8 {[%emt 0:00:02]} 31. Kf2 Ke7 32. Ke1 {[%emt 0:00:02]} Rc1+ {[%emt 0:00:01]} 33. Kd2 {[%emt 0:00:00]} Rf1 {[%emt 0:00:03]} 34. Kd3 {[%emt 0:00:02]} Rxf3+ {[%emt 0:00:01]} 35. Kc4 {[%emt 0:00:01]} Kd6 {[%emt 0:00:02]} 36. Kb5 {[%emt 0:00:01]} Kc7 {[%emt 0:00:04]} 37. Rc2+ {[%emt 0:00:02]} Kb7 {[%emt 0:00:00]} 38. Kc4 {[%emt 0:00:02]} Kc6 {[%emt 0:00:05]} 39. Kb4+ {[%emt 0:00:01]} Kb7 {[%emt 0:00:00]} 40. Kc4 {[%emt 0:00:01]} d3 {[%emt 0:00:02]} 41. Rd2 {[%emt 0:00:01]} Kc6 {[%emt 0:00:05]} 42. a4 {[%emt 0:00:09]} a6 {[%emt 0:00:03]} 43. b4 {[%emt 0:00:06]} b5+ 44. axb5+ {[%emt 0:00:01]} axb5+ {[%emt 0:00:02]} 45. Kc3 {[%emt 0:00:00]} Kd6 {[%emt 0:00:01]} 46. Kb3 {[%emt 0:00:02]} Ke6 {[%emt 0:00:01]} 47. Kc3 {[%emt 0:00:01]} f5 48. exf5+ {[%emt 0:00:03]} Kxf5 {[%emt 0:00:02]} 49. Kb3 {[%emt 0:00:07]} e4 {[%emt 0:00:03]} 50. Kc3 {[%emt 0:00:00]} Ke5 {[%emt 0:00:00]} 51. Ra2 {[%emt 0:00:03]} f5 {[%emt 0:00:06]} 52. Ra5 {[%emt 0:00:01]} Rf2 {[%emt 0:00:05]} 53. Rxb5+ {[%emt 0:00:01]} Kf6 {[%emt 0:00:02]} 54. h4 {[%emt 0:00:10]} Rc2+ {[%emt 0:00:11]} 55. Kd4 {[%emt 0:00:01]} d2 {[%emt 0:00:06]} 56. Rb6+ {[%emt 0:00:01]} Kg7 {[%emt 0:00:01]} 57. Rb7+ {[%emt 0:00:04]} Kg6 {[%emt 0:00:04]} 58. Rb6+ {[%emt 0:00:01]} Kh5 {[%emt 0:00:05]} 0-1

[Event "SWE-ch Blitz 2019"]
[Site "Eskilstuna"]
[Date "2019.07.11"]
[Round "2.23"]
[White "Didriksson, Mikael"]
[Black "Malm Lindberg, Henrik"]
[Result "0-1"]
[ECO "B22"]
[WhiteElo "1899"]
[BlackElo "2189"]
[Annotator "NA"]
[PlyCount "50"]
[EventDate "2019.07.06"]
[EventType "swiss"]
[EventCountry "SWE"]
[SourceTitle "playchess.com"]
[Source "ChessBase"]
[SourceQuality "1"]
[TimeControl "180+2"]

1. e4 {[%emt 0:00:00]} c5 {[%emt 0:00:00]} 2. c3 {[%emt 0:00:00]} Nf6 {[%emt 0:00:00]} 3. f3 {[%emt 0:00:01]} e5 {[%emt 0:00:13]} 4. d4 {[%emt 0:00:01]} cxd4 {[%emt 0:00:02]} 5. cxd4 {[%emt 0:00:01]} exd4 {[%emt 0:00:02]} 6. Qxd4 {[%emt 0:00:04]} Nc6 {[%emt 0:00:01]} 7. Qe3 {[%emt 0:00:16]} Bb4+ {[%emt 0:00:10]} 8. Bd2 {[%emt 0:00:08]} O-O {[%emt 0:00:04]} 9. Bb5 {[%emt 0:00:22]} d5 {[%emt 0:00:10]} 10. Bxc6 {[%emt 0:00:06]} Bxd2+ {[%emt 0:00:02]} 11. Nxd2 {[%emt 0:00:01]} bxc6 {[%emt 0:00:04]} 12. Ne2 {[%emt 0:00:18]} dxe4 {[%emt 0:00:17]} 13. O-O-O {[%emt 0:00:46]} exf3 {[%emt 0:00:06]} 14. Nxf3 {[%emt 0:00:01]} Qb6 {[%emt 0:00:08]} 15. Ned4 {[%emt 0:00:38]} Rb8 {[%emt 0:00:26]} 16. Rd2 {[%emt 0:00:09]} Re8 {[%emt 0:00:20]} 17. Qg5 {[%emt 0:00:21]} Ne4 {[%emt 0:00:12]} 18. Re2 {[%emt 0:00:08]} Bd7 {[%emt 0:00:09]} 19. Qh4 {[%emt 0:00:12]} Qc5+ {[%emt 0:00:10]} 20. Kb1 {[%emt 0:00:01]} Nc3+ {[%emt 0:00:03]} 21. Ka1 {[%emt 0:00:03]} Nxe2 {[%emt 0:00:04]} 22. Ng5 {[%emt 0:00:03]} h6 {[%emt 0:00:25]} 23. Nxf7 {[%emt 0:00:01]} Qxd4 {[%emt 0:00:07]} 24. Nxh6+ {[%emt 0:00:01]} gxh6 {[%emt 0:00:02]} 25. Qh5 {[%emt 0:00:03]} Qxb2# {[%emt 0:00:02]} 0-1

[Event "SWE-ch Blitz 2019"]
[Site "Eskilstuna"]
[Date "2019.07.11"]
[Round "2.24"]
[White "Tadjerbashi, Amir"]
[Black "Adolfsson, Kjell"]
[Result "1/2-1/2"]
[ECO "B40"]
[WhiteElo "2199"]
[BlackElo "1895"]
[Annotator "NA"]
[PlyCount "88"]
[EventDate "2019.07.06"]
[EventType "swiss"]
[EventCountry "SWE"]
[SourceTitle "playchess.com"]
[Source "ChessBase"]
[SourceQuality "1"]
[TimeControl "180+2"]

1. e4 {[%emt 0:00:00]} e6 {[%emt 0:00:00]} 2. d4 {[%emt 0:00:01]} Nf6 {[%emt 0:00:00]} 3. Nd2 {[%emt 0:00:03]} c5 {[%emt 0:00:00]} 4. Ngf3 {[%emt 0:00:06]} cxd4 {[%emt 0:00:01]} 5. Nxd4 {[%emt 0:00:01]} Nc6 {[%emt 0:00:01]} 6. Nxc6 {[%emt 0:00:06]} dxc6 {[%emt 0:00:02]} 7. e5 {[%emt 0:00:02]} Nd5 {[%emt 0:00:04]} 8. Ne4 {[%emt 0:00:23]} Qh4 {[%emt 0:00:25]} 9. Qe2 {[%emt 0:00:34]} Nf4 {[%emt 0:00:35]} 10. Bxf4 {[%emt 0:00:19]} Qxf4 {[%emt 0:00:03]} 11. Nd2 {[%emt 0:00:09]} Bc5 {[%emt 0:00:08]} 12. g3 {[%emt 0:00:02]} Qb4 {[%emt 0:00:13]} 13. O-O-O {[%emt 0:00:14]} O-O {[%emt 0:00:04]} 14. Ne4 {[%emt 0:00:08]} Be7 {[%emt 0:00:12]} 15. f4 {[%emt 0:00:02]} b6 {[%emt 0:00:14]} 16. Bg2 {[%emt 0:00:01]} Bb7 {[%emt 0:00:02]} 17. Nd6 {[%emt 0:00:23]} Bxd6 {[%emt 0:00:06]} 18. Rxd6 {[%emt 0:00:02]} Rac8 {[%emt 0:00:02]} 19. Rhd1 {[%emt 0:00:02]} Qa4 {[%emt 0:00:04]} 20. Kb1 {[%emt 0:00:01]} Ba6 {[%emt 0:00:02]} 21. Qd2 {[%emt 0:00:02]} c5 {[%emt 0:00:05]} 22. b3 {[%emt 0:00:06]} Qb5 {[%emt 0:00:05]} 23. c4 {[%emt 0:00:01]} Qe8 {[%emt 0:00:02]} 24. Bc6 {[%emt 0:00:15]} Rxc6 {[%emt 0:00:12]} 25. Rd8 {[%emt 0:00:16]} Qe7 {[%emt 0:00:06]} 26. Rxf8+ {[%emt 0:00:07]} Qxf8 {[%emt 0:00:02]} 27. Qd7 {[%emt 0:00:01]} Rc8 {[%emt 0:00:05]} 28. Qxa7 {[%emt 0:00:01]} Ra8 {[%emt 0:00:01]} 29. Qxb6 {[%emt 0:00:02]} h5 {[%emt 0:00:12]} 30. Rd7 {[%emt 0:00:04]} Qc8 {[%emt 0:00:12]} 31. Qd6 {[%emt 0:00:01]} Rb8 {[%emt 0:00:11]} 32. Qd2 {[%emt 0:00:02]} Bxc4 {[%emt 0:00:06]} 33. Qd6 {[%emt 0:00:01]} Bb5 {[%emt 0:00:08]} 34. Ra7 {[%emt 0:00:02]} Be8 {[%emt 0:00:03]} 35. Qe7 {[%emt 0:00:01]} g6 {[%emt 0:00:03]} 36. h3 {[%emt 0:00:02]} Qd8 {[%emt 0:00:05]} 37. Qxc5 {[%emt 0:00:03]} Qd1+ {[%emt 0:00:01]} 38. Qc1 {[%emt 0:00:03]} Qd3+ {[%emt 0:00:02]} 39. Qc2 {[%emt 0:00:01]} Qf1+ {[%emt 0:00:03]} 40. Kb2 {[%emt 0:00:01]} Qxh3 {[%emt 0:00:03]} 41. Qc7 {[%emt 0:00:01]} Qg2+ {[%emt 0:00:03]} 42. Ka3 {[%emt 0:00:02]} Ra8 {[%emt 0:00:03]} 43. Rxa8 Qxa8+ {[%emt 0:00:01]} 44. Kb2 {[%emt 0:00:01]} Qg2+ {[%emt 0:00:01]} 1/2-1/2